fUSD/lending_fUSD_20240805
["ID","MTS","AMOUNT","RATE_DAILY","PERIOD"]
[334219484,1722844087003,-500.0,0.00044109,60]
[334219485,1722844087043,-1385.16,0.00044109,60]
[334219486,1722844087082,-500.0,0.00044109,60]
[334219487,1722844087123,-500.0,0.00044109,60]
[334219488,1722844087166,-500.0,0.00044109,60]
[334219489,1722844087207,-2013.05,0.00044109,60]
[334219490,1722844087247,-500.0,0.00044109,60]
[334219491,1722844087286,-500.0,0.00044109,60]
[334219492,1722844087331,-500.0,0.00044109,60]
[334219493,1722844087372,-786.02,0.00044109,60]
[334219494,1722844087414,-500.0,0.00044109,60]
[334219495,1722844087456,-500.0,0.00044109,60]
[334219496,1722844087497,-1285.25,0.00044109,60]
[334219497,1722844087543,-1185.26,0.00044109,60]
[334219498,1722844087581,-500.0,0.00044109,60]
[334219499,1722844087619,-772.26,0.00044109,60]
[334219500,1722844087658,-778.55,0.00044109,60]
[334219501,1722844087697,-500.0,0.00044109,60]
[334219502,1722844087736,-500.0,0.00044109,60]
[334219503,1722844087777,-500.0,0.00044109,60]
[334219504,1722844087819,-500.0,0.00044109,60]
[334219505,1722844087860,-1252.51,0.00044109,60]
[334219506,1722844087902,-899.2,0.00044109,60]
[334219507,1722844087941,-500.0,0.00044109,60]
[334219508,1722844087981,-523.91,0.00044109,60]
[334219509,1722844088019,-500.0,0.00044109,60]
[334219510,1722844088059,-500.0,0.00044109,60]
[334219511,1722844088104,-500.0,0.00044109,60]
[334219512,1722844088145,-628.03,0.00044109,60]
[334219513,1722844088186,-500.0,0.00044109,60]
[334219514,1722844088226,-536.05,0.00044109,60]
[334219515,1722844088264,-500.0,0.00044109,60]
[334219516,1722844088302,-751.17,0.00044109,60]
[334219517,1722844088341,-303.65284226,0.00044109,60]
[334219518,1722844088386,-500.0,0.00044109,60]
[334219519,1722844088436,-500.0,0.00044109,60]
[334219520,1722844088476,-500.0,0.00044109,60]
[334219521,1722844088515,-500.0,0.00044109,60]
[334219522,1722844088553,-500.0,0.00044109,60]
[334219523,1722844088590,-500.0,0.00044109,60]
[334219524,1722844088638,-500.0,0.00044109,60]
[334219525,1722844088678,-500.0,0.00044109,60]
[334219526,1722844088718,-500.0,0.00044109,60]
[334219527,1722844088757,-508.55,0.00044109,60]
[334219528,1722844088796,-500.0,0.00044109,60]
[334219529,1722844088836,-3160.53,0.00044109,60]
[334219530,1722844088877,-1729.34,0.00044109,60]
[334219531,1722844088917,-500.0,0.00044109,60]
[334219532,1722844088956,-642.46,0.00044109,60]
[334219533,1722844088995,-500.0,0.00044109,60]
[334219534,1722844089034,-500.0,0.00044109,60]
[334219535,1722844089079,-970.65,0.00044109,60]
[334219536,1722844089119,-781.82,0.00044109,60]
[334219537,1722844089157,-500.0,0.00044109,60]
[334219538,1722844089196,-500.0,0.00044109,60]
[334219539,1722844089234,-865.91,0.00044109,60]
[334219540,1722844089272,-500.0,0.00044109,60]
[334219541,1722844089309,-612.7,0.00044109,60]
[334219542,1722844089347,-500.0,0.00044109,60]
[334219543,1722844089389,-500.0,0.00044109,60]
[334219544,1722844089430,-500.0,0.00044109,60]
[334219545,1722844089469,-537.68,0.00044109,60]
[334219546,1722844089508,-500.0,0.00044109,60]
[334219547,1722844089545,-500.0,0.00044109,60]
[334219548,1722844089585,-753.56,0.00044109,60]
[334219549,1722844089624,-567.23,0.00044109,60]
[334219550,1722844089662,-500.0,0.00044109,60]
[334219551,1722844089698,-2567.32,0.00044109,60]
[334219552,1722844089736,-500.0,0.00044109,60]
[334219553,1722844089774,-500.0,0.00044109,60]
[334219554,1722844089813,-539.37,0.00044109,60]
[334219555,1722844089855,-500.0,0.00044109,60]
[334219556,1722844089894,-802.29,0.00044109,60]
[334219557,1722844089933,-500.0,0.00044109,60]
[334219558,1722844089972,-600.9,0.00044109,60]
[334219559,1722844090012,-1563.99,0.00044109,60]
[334219560,1722844090050,-500.0,0.00044109,60]
[334219561,1722844090089,-500.0,0.00044109,60]
[334219562,1722844090139,-350.14229898,0.00044109,60]
[334219563,1722844090181,-500.0,0.00044109,60]
[334219564,1722844090221,-500.0,0.00044109,60]
[334219565,1722844090262,-500.0,0.00044109,60]
[334219566,1722844090302,-500.0,0.00044109,60]
[334219567,1722844090571,-2391.07,0.00044109,60]
[334219568,1722844090618,-910.33,0.00044109,60]
[334219569,1722844090657,-926.82,0.00044109,60]
[334219570,1722844090695,-500.0,0.00044109,60]
[334219571,1722844090731,-500.0,0.00044109,60]
[334219572,1722844090770,-1591.38,0.00044109,60]
[334219573,1722844090808,-2018.12,0.00044109,60]
[334219574,1722844090849,-500.0,0.00044109,60]
[334219575,1722844090900,-500.0,0.00044109,60]
[334219576,1722844090939,-691.99,0.00044109,60]
[334219577,1722844090980,-500.0,0.00044109,60]
[334219578,1722844091020,-500.0,0.00044109,60]
[334219579,1722844091059,-500.0,0.00044109,60]
[334219580,1722844091107,-500.0,0.00044109,60]
[334219581,1722844091148,-500.0,0.00044109,60]
[334219582,1722844091191,-500.0,0.00044109,60]
[334219583,1722844091228,-500.0,0.00044109,60]
[334219584,1722844091268,-779.41,0.00044109,60]
[334219585,1722844091305,-500.0,0.00044109,60]
[334219586,1722844091345,-500.0,0.00044109,60]
[334219587,1722844091386,-445.6,0.00044109,60]
[334219588,1722844091426,-500.0,0.00044109,60]
[334219589,1722844091466,-942.51,0.00044109,60]
[334219590,1722844091503,-300.64,0.00044109,60]
[334219591,1722844091540,-437.4,0.00044109,60]
[334219592,1722844091578,-500.0,0.00044109,60]
[334219593,1722844091616,-2916.29,0.00044109,60]
[334219594,1722844091656,-500.0,0.00044109,60]
[334219595,1722844091692,-500.0,0.00044109,60]
[334219596,1722844091731,-1233.31,0.00044109,60]
[334219597,1722844091770,-500.0,0.00044109,60]
[334219598,1722844091809,-766.73,0.00044109,60]
[334219599,1722844091847,-500.0,0.00044109,60]
[334219600,1722844091892,-915.42,0.00044109,60]
[334219601,1722844091934,-870.91,0.00044109,60]
[334219602,1722844091975,-500.0,0.00044109,60]
[334219603,1722844092015,-500.0,0.00044109,60]
[334219604,1722844092056,-500.0,0.00044109,60]
[334219605,1722844092096,-1691.15,0.00044109,60]
[334219606,1722844092141,-500.0,0.00044109,60]
[334219607,1722844092182,-500.0,0.00044109,60]
[334219608,1722844092220,-500.0,0.00044109,60]
[334219609,1722844092257,-500.0,0.00044109,60]
[334219610,1722844092294,-834.27,0.00044109,60]
[334219611,1722844092332,-500.0,0.00044109,60]
[334219612,1722844092371,-1459.73,0.00044109,60]
[334219613,1722844092408,-500.0,0.00044109,60]
[334219614,1722844092446,-509.96620209,0.00044109,60]
[334219615,1722844092483,-2390.28,0.00044109,60]
[334219616,1722844092520,-500.0,0.00044109,60]
[334219617,1722844092558,-500.0,0.00044109,60]
[334219618,1722844092595,-1761.5,0.00044109,60]
[334219619,1722844092632,-500.0,0.00044109,60]
[334219620,1722844092667,-500.63301589,0.00044109,60]
[334219621,1722844092701,-1163.33,0.00044109,60]
[334219622,1722844092738,-389.11,0.00044109,60]
[334219623,1722844092776,-500.0,0.00044109,60]
[334219624,1722844092814,-500.0,0.00044109,60]
[334219625,1722844092850,-500.0,0.00044109,60]
[334219626,1722844092892,-500.0,0.00044109,60]
[334219627,1722844092930,-500.0,0.00044109,60]
[334219628,1722844092968,-500.0,0.00044109,60]
[334219629,1722844093006,-244.40588627,0.00044109,60]
[334219630,1722844093042,-1314.52,0.00044109,60]
[334219631,1722844093079,-761.02,0.00044109,60]
[334219632,1722844093116,-1207.95,0.00044109,60]
[334219633,1722844093153,-500.0,0.00044109,60]
[334219634,1722844093191,-500.0,0.00044109,60]
[334219635,1722844093227,-500.0,0.00044109,60]
[334219636,1722844093264,-2565.81,0.00044109,60]
[334219637,1722844093302,-501.7368784,0.00044109,60]
[334219638,1722844093342,-500.0,0.00044109,60]
[334219639,1722844093392,-749.53,0.00044109,60]
[334219640,1722844093431,-979.33,0.00044109,60]
[334219641,1722844093470,-500.0,0.00044109,60]
[334219642,1722844093507,-961.95,0.00044109,60]
[334219643,1722844093543,-500.0,0.00044109,60]
[334219644,1722844093579,-611.05,0.00044109,60]
[334219645,1722844093617,-500.0,0.00044109,60]
[334219646,1722844093654,-500.0,0.00044109,60]
[334219647,1722844093691,-500.0,0.00044109,60]
[334219648,1722844093728,-545.02,0.00044109,60]
[334219649,1722844093767,-1160.5,0.00044109,60]
[334219650,1722844093809,-1016.91,0.00044109,60]
[334219651,1722844093850,-500.0,0.00044109,60]
[334219652,1722844093901,-500.0,0.00044109,60]
[334219653,1722844093941,-883.87,0.00044109,60]
[334219654,1722844093980,-2022.73,0.00044109,60]
[334219655,1722844094019,-500.0,0.00044109,60]
[334219656,1722844094059,-547.52,0.00044109,60]
[334219657,1722844094098,-1346.29,0.00044109,60]
[334219658,1722844094141,-4479.71,0.00044109,60]
[334219659,1722844094181,-1279.5,0.00044109,60]
[334219660,1722844094218,-500.0,0.00044109,60]
[334219661,1722844094256,-2040.04,0.00044109,60]
[334219662,1722844094294,-500.0,0.00044109,60]
[334219663,1722844094332,-1979.66,0.00044109,60]
[334219664,1722844094371,-656.96,0.00044109,60]
[334219665,1722844094413,-500.87733694,0.00044109,60]
[334219666,1722844094453,-500.0,0.00044109,60]
[334219667,1722844094491,-1797.59,0.00044109,60]
[334219668,1722844094529,-1718.42,0.00044109,60]
[334219669,1722844094566,-500.0,0.00044109,60]
[334219670,1722844094830,-500.0,0.00044109,60]
[334219671,1722844094873,-500.0,0.00044109,60]
[334219672,1722844094915,-817.92,0.00044109,60]
[334219673,1722844094958,-500.0,0.00044109,60]
[334219674,1722844095000,-4393.43,0.00044109,60]
[334219675,1722844095043,-650.93,0.00044109,60]
[334219676,1722844095088,-500.0,0.00044109,60]
[334219677,1722844095139,-500.0,0.00044109,60]
[334219678,1722844095185,-500.0,0.00044109,60]
[334219679,1722844095227,-2535.59,0.00044109,60]
[334219680,1722844095269,-795.98,0.00044109,60]
[334219681,1722844095311,-500.0,0.00044109,60]
[334219682,1722844095352,-500.0,0.00044109,60]
[334219683,1722844095395,-1108.74,0.00044109,60]
[334219684,1722844095435,-554.48,0.00044109,60]
[334219685,1722844095474,-500.0,0.00044109,60]
[334219686,1722844095513,-748.43,0.00044109,60]
[334219687,1722844095550,-500.33089034,0.00044109,60]
[334219688,1722844095587,-676.01,0.00044109,60]
[334219689,1722844095625,-500.59315776,0.00044109,60]
[334219690,1722844095663,-2269.32,0.00044109,60]
[334219691,1722844095701,-541.67,0.00044109,60]
[334219692,1722844095741,-500.0,0.00044109,60]
[334219693,1722844095783,-1092.36,0.00044109,60]
[334219694,1722844095823,-500.0,0.00044109,60]
[334219695,1722844095864,-2605.32,0.00044109,60]
[334219696,1722844095904,-500.0,0.00044109,60]
[334219697,1722844095947,-881.72,0.00044109,60]
[334219698,1722844095986,-500.0,0.00044109,60]
[334219699,1722844096025,-571.71,0.00044109,60]
[334219700,1722844096065,-565.96320253,0.00044109,60]
[334219701,1722844096105,-500.0,0.00044109,60]
[334219702,1722844096147,-500.0,0.00044109,60]
[334219703,1722844096187,-517.09,0.00044109,60]
[334219704,1722844096223,-1077.24,0.00044109,60]
[334219705,1722844096259,-2690.83,0.00044109,60]
[334219706,1722844096297,-587.38,0.00044109,60]
[334219707,1722844096335,-500.0,0.00044109,60]
[334219708,1722844096375,-500.0,0.00044109,60]
[334219709,1722844096417,-500.0,0.00044109,60]
[334219710,1722844096456,-3048.1,0.00044109,60]
[334219711,1722844096493,-1735.96,0.00044109,60]
[334219712,1722844096532,-500.0,0.00044109,60]
[334219713,1722844096569,-500.0,0.00044109,60]
[334219714,1722844096609,-500.0,0.00044109,60]
[334219715,1722844096653,-500.0,0.00044109,60]
[334219716,1722844096693,-500.74889729,0.00044109,60]
[334219717,1722844096731,-1039.78,0.00044109,60]
[334219718,1722844096770,-500.0,0.00044109,60]
[334219719,1722844096810,-1250.88,0.00044109,60]
[334219720,1722844096850,-1011.05,0.00044109,60]
[334219721,1722844096899,-500.0,0.00044109,60]
[334219722,1722844096942,-500.0,0.00044109,60]
[334219723,1722844096983,-1749.45,0.00044109,60]
[334219724,1722844097024,-500.0,0.00044109,60]
[334219725,1722844097064,-500.0,0.00044109,60]
[334219726,1722844097113,-2024.0,0.00044109,60]
[334219727,1722844097157,-1204.61,0.00044109,60]
[334219728,1722844097196,-500.0,0.00044109,60]
[334219729,1722844097233,-500.0,0.00044109,60]
[334219730,1722844097269,-300.71453975,0.00044109,60]
[334219731,1722844097304,-500.0,0.00044109,60]
[334219732,1722844097339,-500.0,0.00044109,60]
[334219733,1722844097376,-500.0,0.00044109,60]
[334219734,1722844097413,-623.6,0.00044109,60]
[334219735,1722844097449,-500.0,0.00044109,60]
[334219736,1722844097486,-500.0,0.00044109,60]
[334219737,1722844097523,-3446.36,0.00044109,60]
[334219738,1722844097561,-748.82,0.00044109,60]
[334219739,1722844097599,-1415.66,0.00044109,60]
[334219740,1722844097642,-500.0,0.00044109,60]
[334219741,1722844097680,-1207.31,0.00044109,60]
[334219742,1722844097719,-500.0,0.00044109,60]
[334219743,1722844097759,-500.0,0.00044109,60]
[334219744,1722844097798,-500.0,0.00044109,60]
[334219745,1722844097838,-500.0,0.00044109,60]
[334219746,1722844097879,-788.5,0.00044109,60]
[334219747,1722844097919,-3556.54,0.00044109,60]
[334219748,1722844097960,-500.0,0.00044109,60]
[334219749,1722844098001,-500.0,0.00044109,60]
[334219750,1722844098042,-500.14333784,0.00044109,60]
[334219751,1722844098084,-500.0,0.00044109,60]
[334219752,1722844098133,-500.0,0.00044109,60]
[334219753,1722844098176,-500.0,0.00044109,60]
[334219754,1722844098218,-738.52,0.00044109,60]
[334219755,1722844098258,-781.04,0.00044109,60]
[334219756,1722844098297,-2197.19,0.00044109,60]
[334219757,1722844098338,-500.0,0.00044109,60]
[334219758,1722844098379,-500.0,0.00044109,60]
[334219759,1722844098419,-621.01066118,0.00044109,60]
[334219760,1722844098458,-500.0,0.00044109,60]
[334219761,1722844098497,-500.0,0.00044109,60]
[334219762,1722844098536,-500.0,0.00044109,60]
[334219763,1722844098574,-500.0,0.00044109,60]
[334219764,1722844098617,-221.82656565,0.00044109,60]
[334219765,1722844098658,-861.54,0.00044109,60]
[334219766,1722844098701,-629.51,0.00044109,60]
[334219767,1722844098747,-500.0,0.00044109,60]
[334219768,1722844098791,-500.0,0.00044109,60]
[334219769,1722844098837,-500.0,0.00044109,60]
[334219770,1722844098883,-500.0,0.00044109,60]
[334219771,1722844098927,-500.0,0.00044109,60]
[334219772,1722844098972,-500.0,0.00044109,60]
[334219773,1722844099269,-500.0,0.00044109,60]
[334219774,1722844099309,-2019.2,0.00044109,60]
[334219775,1722844099350,-1081.51,0.00044109,60]
[334219776,1722844099394,-501.7870942,0.00044109,60]
[334219777,1722844099435,-500.0,0.00044109,60]
[334219778,1722844099478,-500.7031678,0.00044109,60]
[334219779,1722844099520,-500.0,0.00044109,60]
[334219780,1722844099563,-3091.06,0.00044109,60]
[334219781,1722844099604,-500.0,0.00044109,60]
[334219782,1722844099651,-617.48882965,0.00044109,60]
[334219783,1722844099696,-1926.55,0.00044109,60]
[334219784,1722844099740,-996.23,0.00044109,60]
[334219785,1722844099784,-500.0,0.00044109,60]
[334219786,1722844099825,-500.0,0.00044109,60]
[334219787,1722844099869,-500.0,0.00044109,60]
[334219788,1722844099911,-500.0,0.00044109,60]
[334219789,1722844099952,-500.0,0.00044109,60]
[334219790,1722844099994,-500.0,0.00044109,60]
[334219791,1722844100035,-500.0,0.00044109,60]
[334219792,1722844100077,-500.0,0.00044109,60]
[334219793,1722844100122,-500.0,0.00044109,60]
[334219794,1722844100167,-1073.18,0.00044109,60]
[334219795,1722844100208,-500.0,0.00044109,60]
[334219796,1722844100248,-3342.17,0.00044109,60]
[334219797,1722844100292,-2364.16,0.00044109,60]
[334219798,1722844100333,-500.0,0.00044109,60]
[334219799,1722844100374,-500.0,0.00044109,60]
[334219800,1722844100415,-500.0,0.00044109,60]
[334219801,1722844100456,-536.25243401,0.00044109,60]
[334219802,1722844100498,-500.0,0.00044109,60]
[334219803,1722844100539,-871.78,0.00044109,60]
[334219804,1722844100578,-500.0,0.00044109,60]
[334219805,1722844100619,-500.0,0.00044109,60]
[334219806,1722844100657,-1176.28,0.00044109,60]
[334219807,1722844100696,-2932.21,0.00044109,60]
[334219808,1722844100736,-500.0,0.00044109,60]
[334219809,1722844100775,-500.0,0.00044109,60]
[334219810,1722844100815,-500.0,0.00044109,60]
[334219811,1722844100856,-500.0,0.00044109,60]
[334219812,1722844100899,-500.0,0.00044109,60]
[334219813,1722844100941,-1369.01,0.00044109,60]
[334219814,1722844100983,-500.0,0.00044109,60]
[334219815,1722844101024,-551.05,0.00044109,60]
[334219816,1722844101066,-962.6,0.00044109,60]
[334219817,1722844101115,-215.53162742,0.00044109,60]
[334219818,1722844101158,-929.8,0.00044109,60]
[334219819,1722844101199,-1590.64,0.00044109,60]
[334219820,1722844101239,-500.0,0.00044109,60]
[334219821,1722844101277,-500.0,0.00044109,60]
[334219822,1722844101317,-500.0,0.00044109,60]
[334219823,1722844101357,-500.0,0.00044109,60]
[334219824,1722844101408,-2220.92,0.00044109,60]
[334219825,1722844101448,-1744.69,0.00044109,60]
[334219826,1722844101490,-1678.91,0.00044109,60]
[334219827,1722844101529,-500.0,0.00044109,60]
[334219828,1722844101570,-1493.19,0.00044109,60]
[334219829,1722844101609,-1416.08,0.00044109,60]
[334219830,1722844101651,-697.66,0.00044109,60]
[334219831,1722844101688,-500.0,0.00044109,60]
[334219832,1722844101726,-500.0,0.00044109,60]
[334219833,1722844101766,-3024.71,0.00044109,60]
[334219834,1722844101805,-500.78046749,0.00044109,60]
[334219835,1722844101843,-179.10692421,0.00044109,60]
[334219836,1722844101881,-996.96,0.00044109,60]
[334219837,1722844101921,-744.97,0.00044109,60]
[334219838,1722844101962,-584.29,0.00044109,60]
[334219839,1722844102003,-500.0,0.00044109,60]
[334219840,1722844102046,-2398.98,0.00044109,60]
[334219841,1722844102090,-2176.07,0.00044109,60]
[334219842,1722844102136,-552.07,0.00044109,60]
[334219843,1722844102185,-3676.17,0.00044109,60]
[334219844,1722844102232,-500.0,0.00044109,60]
[334219845,1722844102276,-504.6805445,0.00044109,60]
[334219846,1722844102320,-2763.91,0.00044109,60]
[334219847,1722844102368,-500.0,0.00044109,60]
[334219848,1722844102410,-500.0,0.00044109,60]
[334219849,1722844102453,-1002.08,0.00044109,60]
[334219850,1722844102494,-750.01,0.00044109,60]
[334219851,1722844102535,-1538.08,0.00044109,60]
[334219852,1722844102574,-500.0,0.00044109,60]
[334219853,1722844102618,-500.0,0.00044109,60]
[334219854,1722844102658,-1448.11,0.00044109,60]
[334219855,1722844102698,-1605.85,0.00044109,60]
[334219856,1722844102737,-500.0,0.00044109,60]
[334219857,1722844102777,-2587.1,0.00044109,60]
[334219858,1722844102818,-500.0,0.00044109,60]
[334219859,1722844102858,-500.0,0.00044109,60]
[334219860,1722844102901,-765.91,0.00044109,60]
[334219861,1722844102942,-500.0,0.00044109,60]
[334219862,1722844102983,-3064.52,0.00044109,60]
[334219863,1722844103024,-500.0,0.00044109,60]
[334219864,1722844103064,-1557.46,0.00044109,60]
[334219865,1722844103105,-533.48,0.00044109,60]
[334219866,1722844103149,-500.0,0.00044109,60]
[334219867,1722844103190,-500.0,0.00044109,60]
[334219868,1722844103233,-810.02,0.00044109,60]
[334219869,1722844103273,-1020.46,0.00044109,60]
[334219870,1722844103314,-1149.76,0.00044109,60]
[334219871,1722844103353,-500.0,0.00044109,60]
[334219872,1722844103405,-3579.5,0.00044109,60]
[334219873,1722844103446,-500.0,0.00044109,60]
[334219874,1722844103485,-956.58,0.00044109,60]
[334219875,1722844103524,-2490.57,0.00044109,60]
[334219876,1722844103563,-500.0,0.00044109,60]
[334219877,1722844103871,-500.0,0.00044109,60]
[334219878,1722844103912,-500.0,0.00044109,60]
[334219879,1722844103952,-500.0,0.00044109,60]
[334219880,1722844103992,-1276.34,0.00044109,60]
[334219881,1722844104032,-500.0,0.00044109,60]
[334219882,1722844104074,-500.0,0.00044109,60]
[334219883,1722844104119,-1139.97,0.00044109,60]
[334219884,1722844104158,-487.93,0.00044109,60]
[334219885,1722844104199,-581.94,0.00044109,60]
[334219886,1722844104238,-544.37,0.00044109,60]
[334219887,1722844104277,-500.0,0.00044109,60]
[334219888,1722844104317,-1206.85,0.00044109,60]
[334219889,1722844104357,-500.0,0.00044109,60]
[334219890,1722844104399,-3091.48,0.00044109,60]
[334219891,1722844104437,-500.0,0.00044109,60]
[334219892,1722844104474,-969.26,0.00044109,60]
[334219893,1722844104512,-2684.86,0.00044109,60]
[334219894,1722844104552,-1258.7,0.00044109,60]
[334219895,1722844104590,-500.0,0.00044109,60]
[334219896,1722844104628,-1112.49,0.00044109,60]
[334219897,1722844104666,-653.32,0.00044109,60]
[334219898,1722844104703,-285.32,0.00044109,60]
[334219899,1722844104742,-500.0,0.00044109,60]
[334219900,1722844104782,-818.34,0.00044109,60]
[334219901,1722844104822,-502.50605644,0.00044109,60]
[334219902,1722844104866,-782.47,0.00044109,60]
[334219903,1722844104908,-1503.97,0.00044109,60]
[334219904,1722844104960,-500.0,0.00044109,60]
[334219905,1722844105000,-1117.12,0.00044109,60]
[334219906,1722844105041,-503.70792212,0.00044109,60]
[334219907,1722844105084,-500.0,0.00044109,60]
[334219908,1722844105129,-1479.62,0.00044109,60]
[334219909,1722844105173,-500.0,0.00044109,60]
[334219910,1722844105219,-500.0,0.00044109,60]
[334219911,1722844105260,-500.0,0.00044109,60]
[334219912,1722844105299,-500.0,0.00044109,60]
[334219913,1722844105339,-500.0,0.00044109,60]
[334219914,1722844105378,-500.0,0.00044109,60]
[334219915,1722844105416,-533.9,0.00044109,60]
[334219916,1722844105454,-500.0,0.00044109,60]
[334219917,1722844105492,-500.0,0.00044109,60]
[334219918,1722844105529,-4566.79,0.00044109,60]
[334219919,1722844105567,-500.0,0.00044109,60]
[334219920,1722844105605,-500.0,0.00044109,60]
[334219921,1722844105646,-665.55,0.00044109,60]
[334219922,1722844105684,-500.0,0.00044109,60]
[334219923,1722844105723,-1862.02,0.00044109,60]
[334219924,1722844105762,-500.0,0.00044109,60]
[334219925,1722844105799,-1106.04,0.00044109,60]
[334219926,1722844105839,-910.91,0.00044109,60]
[334219927,1722844105876,-500.0,0.00044109,60]
[334219928,1722844105920,-500.0,0.00044109,60]
[334219929,1722844105961,-500.0,0.00044109,60]
[334219930,1722844106001,-844.82,0.00044109,60]
[334219931,1722844106040,-2881.09,0.00044109,60]
[334219932,1722844106080,-500.0,0.00044109,60]
[334219933,1722844106125,-473.72882542,0.00044109,60]
[334219934,1722844106162,-1233.92,0.00044109,60]
[334219935,1722844106200,-500.0,0.00044109,60]
[334219936,1722844106236,-150.0,0.00044109,60]
[334219937,1722844106272,-500.0,0.00044109,60]
[334219938,1722844106309,-1817.05,0.00044109,60]
[334219939,1722844106348,-663.4,0.00044109,60]
[334219940,1722844106390,-940.29,0.00044109,60]
[334219941,1722844106429,-500.0,0.00044109,60]
[334219942,1722844106469,-1193.36,0.00044109,60]
[334219943,1722844106506,-1041.73,0.00044109,60]
[334219944,1722844106541,-500.0,0.00044109,60]
[334219945,1722844106576,-500.0,0.00044109,60]
[334219946,1722844106612,-1889.39,0.00044109,60]
[334219947,1722844106658,-4031.21,0.00044109,60]
[334219948,1722844106692,-575.03,0.00044109,60]
[334219949,1722844106729,-3240.62429275,0.00044109,60]
[334219950,1722844106764,-1021.91,0.00044109,60]
[334219951,1722844106800,-889.77,0.00044109,60]
[334219952,1722844106837,-2391.75,0.00044109,60]
[334219953,1722844106874,-1422.39,0.00044109,60]
[334219954,1722844106912,-500.0,0.00044109,60]
[334219955,1722844106951,-1481.83,0.00044109,60]
[334219956,1722844106989,-812.97,0.00044109,60]
[334219957,1722844107028,-500.0,0.00044109,60]
[334219958,1722844107067,-1178.96,0.00044109,60]
[334219959,1722844107105,-500.0,0.00044109,60]
[334219960,1722844107148,-500.0,0.00044109,60]
[334219961,1722844107189,-1524.82,0.00044109,60]
[334219962,1722844107224,-500.0,0.00044109,60]
[334219963,1722844107261,-500.0,0.00044109,60]
[334219964,1722844107300,-500.0,0.00044109,60]
[334219965,1722844107339,-1094.96,0.00044109,60]
[334219966,1722844107377,-2487.48,0.00044109,60]
[334219967,1722844107415,-789.42,0.00044109,60]
[334219968,1722844107453,-1973.1,0.00044109,60]
[334219969,1722844107489,-989.26,0.00044109,60]
[334219970,1722844107526,-500.0,0.00044109,60]
[334219971,1722844107565,-500.0,0.00044109,60]
[334219972,1722844107603,-500.0,0.00044109,60]
[334219973,1722844107642,-500.0,0.00044109,60]
[334219974,1722844107678,-1515.92,0.00044109,60]
[334219975,1722844107717,-2056.28,0.00044109,60]
[334219976,1722844107755,-3337.89,0.00044109,60]
[334219977,1722844107795,-500.0,0.00044109,60]
[334219978,1722844107835,-1172.06,0.00044109,60]
[334219979,1722844107874,-371.6,0.00044109,60]
[334219980,1722844108137,-500.0,0.00044109,60]
[334219981,1722844108177,-2779.3,0.00044109,60]
[334219982,1722844108215,-979.35,0.00044109,60]
[334219983,1722844108252,-829.4,0.00044109,60]